[Event "Gibraltar Junior Intl U16 2019"]
[Site "Caleta"]
[Date "2019.08.18"]
[Round "4.18"]
[White "Hernandez Tellez, Claudia"]
[Black "Gaspar Lopez, Rocio"]
[Result "1-0"]
[ECO "B52"]
[WhiteElo "1711"]
[BlackElo "1367"]
[Annotator "NA"]
[PlyCount "105"]
[EventDate "2019.08.16"]
[EventType "swiss"]
[EventCountry "GGB"]
[SourceTitle "playchess.com"]
[Source "ChessBase"]
[SourceQuality "1"]
[TimeControl "6600+10"]

1. e4 {[%emt 0:00:00]} c5 {[%emt 0:00:00]} 2. Nf3 {[%emt 0:00:05]} d6 {[%emt 0:00:00]} 3. Bb5+ {[%emt 0:00:08]} Bd7 {[%emt 0:00:00]} 4. Bxd7+ {[%emt 0:00:11]} Nxd7 {[%emt 0:00:01]} 5. O-O {[%emt 0:00:16]} Ngf6 {[%emt 0:00:03]} 6. Qe2 {[%emt 0:00:12]} g6 {[%emt 0:00:09]} 7. c3 {[%emt 0:00:23]} Bg7 {[%emt 0:00:39]} 8. d4 {[%emt 0:00:33]} cxd4 {[%emt 0:00:32]} 9. cxd4 {[%emt 0:00:09]} d5 {[%emt 0:11:46]} 10. e5 {[%emt 0:01:46]} Ne4 {[%emt 0:09:15]} 11. Ne1 {[%emt 0:05:24]} Qb6 {[%emt 0:37:32]} 12. f3 {[%emt 0:22:45]} Qxd4+ {[%emt 0:00:31]} 13. Be3 {[%emt 0:00:35]} Qxe5 {[%emt 0:01:43]} 14. Nd3 {[%emt 0:01:56]} Ng3 {[%emt 0:07:22]} 15. hxg3 {[%emt 0:00:42]} Qxg3 {[%emt 0:00:02]} 16. Bf2 {[%emt 0:03:51]} Qd6 {[%emt 0:00:28]} 17. Nc3 {[%emt 0:03:29]} a6 {[%emt 0:00:27]} 18. Rfe1 {[%emt 0:03:44]} e6 {[%emt 0:00:22]} 19. Rac1 {[%emt 0:03:02]} O-O {[%emt 0:00:01]} 20. f4 {[%emt 0:03:04]} Rfe8 {[%emt 0:02:55]} 21. Ne5 {[%emt 0:03:57]} Nxe5 {[%emt 0:01:24]} 22. fxe5 {[%emt 0:00:07]} Qe7 {[%emt 0:00:42]} 23. Qg4 {[%emt 0:04:17]} h5 {[%emt 0:01:53]} 24. Qf4 {[%emt 0:03:53]} Kh7 {[%emt 0:01:03]} 25. Bh4 {[%emt 0:06:16]} Bh6 {[%emt 0:02:37]} 26. Qxh6+ {[%emt 0:00:30]} Kxh6 {[%emt 0:00:05]} 27. Bxe7 {[%emt 0:00:04]} Rxe7 {[%emt 0:00:05]} 28. Ne2 {[%emt 0:00:07]} Kg7 {[%emt 0:01:45]} 29. Rc3 {[%emt 0:04:48]} Rd8 {[%emt 0:01:05]} 30. Nd4 {[%emt 0:00:50]} Rdd7 {[%emt 0:00:29]} 31. Rec1 {[%emt 0:05:26]} Kh7 {[%emt 0:00:22]} 32. Nb3 {[%emt 0:01:17]} Kh6 {[%emt 0:02:57]} 33. Kf2 {[%emt 0:00:39]} Kg5 {[%emt 0:00:49]} 34. Ke3 {[%emt 0:02:06]} Kf5 {[%emt 0:02:47]} 35. Kd4 {[%emt 0:00:17]} h4 {[%emt 0:03:08]} 36. Nd2 {[%emt 0:02:45]} g5 {[%emt 0:01:22]} 37. Nf1 {[%emt 0:00:27]} Kg6 {[%emt 0:02:10]} 38. Nh2 {[%emt 0:01:14]} Kh5 {[%emt 0:03:12]} 39. Rc8 {[%emt 0:00:25]} Kg6 {[%emt 0:00:57]} 40. Ng4 {[%emt 0:00:59]} b5 {[%emt 0:01:01]} 41. Nf6 {[%emt 0:01:11]} Rb7 {[%emt 0:01:22]} 42. Rg8+ {[%emt 0:04:45]} Kh6 {[%emt 0:00:27]} 43. Rgc8 {[%emt 0:00:03]} Kg6 {[%emt 0:00:27]} 44. Ke3 {[%emt 0:01:26]} Kf5 {[%emt 0:02:59]} 45. Kd4 {[%emt 0:00:36]} Kg6 {[%emt 0:00:14]} 46. R1c2 {[%emt 0:03:14]} Kf5 {[%emt 0:01:02]} 47. Rc1 {[%emt 0:00:01]} Kg6 {[%emt 0:00:41]} 48. R1c2 {[%emt 0:00:01]} b4 {[%emt 0:01:24]} 49. b3 {[%emt 0:00:00]} a5 {[%emt 0:00:13]} 50. R2c5 {[%emt 0:00:00]} Ra7 {[%emt 0:00:29]} 51. Rc1 {[%emt 0:00:16]} a4 {[%emt 0:01:51]} 52. g3 {[%emt 0:02:11]} hxg3 {[%emt 0:01:47]} 53. Rg8+ {[%emt 0:00:13]} 1-0

[Event "Gibraltar Junior Intl U16 2019"]
[Site "Caleta"]
[Date "2019.08.18"]
[Round "4.19"]
[White "Miller, Max C"]
[Black "Greco, Joseph"]
[Result "0-1"]
[ECO "D05"]
[WhiteElo "1563"]
[BlackElo "1690"]
[Annotator "NA"]
[PlyCount "70"]
[EventDate "2019.08.16"]
[EventType "swiss"]
[EventCountry "GGB"]
[SourceTitle "playchess.com"]
[Source "ChessBase"]
[SourceQuality "1"]
[TimeControl "6600+10"]

1. d4 {[%emt 0:00:00]} Nf6 {[%emt 0:00:00]} 2. Nf3 {[%emt 0:00:02]} e6 {[%emt 0:00:00]} 3. e3 {[%emt 0:00:04]} d5 {[%emt 0:00:06]} 4. Bd3 {[%emt 0:00:04]} b6 {[%emt 0:01:29]} 5. b3 {[%emt 0:00:10]} Bb7 {[%emt 0:00:07]} 6. Bb2 {[%emt 0:00:04]} Nbd7 {[%emt 0:01:42]} 7. Nbd2 {[%emt 0:00:38]} Be7 {[%emt 0:01:02]} 8. O-O {[%emt 0:00:10]} O-O {[%emt 0:00:40]} 9. Ne5 {[%emt 0:03:53]} c5 {[%emt 0:07:33]} 10. f4 {[%emt 0:01:30]} Ne4 {[%emt 0:02:06]} 11. Rf3 {[%emt 0:07:41]} f5 {[%emt 0:20:27]} 12. Bxe4 {[%emt 0:05:29]} Nxe5 {[%emt 0:06:45]} 13. dxe5 {[%emt 0:05:50]} fxe4 {[%emt 0:03:11]} 14. Rg3 {[%emt 0:02:52]} Qe8 {[%emt 0:07:00]} 15. Qg4 {[%emt 0:08:22]} Qf7 {[%emt 0:01:21]} 16. Rf1 {[%emt 0:03:35]} g6 {[%emt 0:02:09]} 17. Rh3 {[%emt 0:11:03]} b5 {[%emt 0:07:02]} 18. b4 {[%emt 0:13:46]} c4 {[%emt 0:01:43]} 19. a3 {[%emt 0:03:39]} a5 {[%emt 0:01:07]} 20. Bc3 {[%emt 0:05:56]} axb4 {[%emt 0:05:07]} 21. Bxb4 {[%emt 0:00:37]} Bc6 {[%emt 0:04:18]} 22. Nb1 {[%emt 0:07:08]} Bxb4 {[%emt 0:02:44]} 23. axb4 {[%emt 0:00:17]} Ra1 {[%emt 0:00:19]} 24. Rh4 {[%emt 0:05:22]} Bd7 {[%emt 0:01:43]} 25. Nc3 {[%emt 0:02:29]} Rfa8 {[%emt 0:00:43]} 26. Rxa1 {[%emt 0:03:13]} Rxa1+ {[%emt 0:00:11]} 27. Kf2 {[%emt 0:00:02]} Qe7 {[%emt 0:00:29]} 28. Qg5 {[%emt 0:03:58]} Qxg5 {[%emt 0:01:55]} 29. fxg5 {[%emt 0:01:15]} Rc1 {[%emt 0:00:08]} 30. Ne2 {[%emt 0:00:45]} Rxc2 {[%emt 0:00:18]} 31. Ke1 {[%emt 0:01:18]} Rb2 {[%emt 0:00:13]} 32. Kd1 {[%emt 0:00:34]} Rxb4 {[%emt 0:00:10]} 33. Kc2 {[%emt 0:00:22]} Rb3 {[%emt 0:00:22]} 34. Nc3 {[%emt 0:00:16]} b4 {[%emt 0:00:19]} 35. Nd1 {[%emt 0:00:03]} Ba4 {[%emt 0:00:16]} 0-1

[Event "Gibraltar Junior Intl U16 2019"]
[Site "Caleta"]
[Date "2019.08.18"]
[Round "4.20"]
[White "Walker, Max"]
[Black "Khan, Samir"]
[Result "0-1"]
[ECO "A40"]
[WhiteElo "1667"]
[BlackElo "1282"]
[Annotator "NA"]
[PlyCount "76"]
[EventDate "2019.08.16"]
[EventType "swiss"]
[EventCountry "GGB"]
[SourceTitle "playchess.com"]
[Source "ChessBase"]
[SourceQuality "1"]
[TimeControl "6600+10"]

1. d4 {[%emt 0:03:05]} b6 {[%emt 0:00:04]} 2. Bf4 {[%emt 0:00:19]} e6 {[%emt 0:00:11]} 3. Nf3 {[%emt 0:00:11]} Bb7 {[%emt 0:00:08]} 4. Nbd2 {[%emt 0:00:09]} Nf6 {[%emt 0:00:28]} 5. h4 {[%emt 0:00:49]} c5 {[%emt 0:02:11]} 6. e3 {[%emt 0:00:18]} d6 {[%emt 0:00:37]} 7. Bd3 {[%emt 0:00:24]} Nbd7 {[%emt 0:00:38]} 8. Qe2 {[%emt 0:02:32]} Qc7 {[%emt 0:01:59]} 9. Bh2 {[%emt 0:02:37]} Be7 {[%emt 0:06:35]} 10. c3 {[%emt 0:01:08]} Ng4 {[%emt 0:09:03]} 11. e4 {[%emt 0:02:51]} Nxh2 {[%emt 0:01:01]} 12. Rxh2 {[%emt 0:01:03]} Nf6 {[%emt 0:03:47]} 13. e5 {[%emt 0:03:54]} Ng4 {[%emt 0:07:15]} 14. Rh3 {[%emt 0:02:12]} cxd4 {[%emt 0:00:31]} 15. cxd4 {[%emt 0:00:49]} dxe5 {[%emt 0:01:20]} 16. Nxe5 {[%emt 0:02:12]} Nxe5 {[%emt 0:01:16]} 17. dxe5 {[%emt 0:00:05]} O-O {[%emt 0:03:34]} 18. Nf3 {[%emt 0:04:28]} Bxf3 {[%emt 0:07:11]} 19. Rxf3 {[%emt 0:00:19]} Rad8 {[%emt 0:04:50]} 20. Qe4 {[%emt 0:00:23]} g6 {[%emt 0:00:16]} 21. h5 {[%emt 0:00:33]} Qc5 {[%emt 0:02:11]} 22. hxg6 {[%emt 0:06:06]} fxg6 {[%emt 0:00:29]} 23. Rxf8+ {[%emt 0:14:26]} Rxf8 {[%emt 0:00:29]} 24. Qe2 {[%emt 0:03:08]} Bh4 {[%emt 0:00:54]} 25. g3 {[%emt 0:23:24]} Bxg3 {[%emt 0:00:12]} 26. fxg3 {[%emt 0:00:22]} Qg1+ {[%emt 0:00:08]} 27. Kd2 {[%emt 0:00:03]} Qxa1 {[%emt 0:00:13]} 28. Ke3 {[%emt 0:11:21]} Qc1+ {[%emt 0:02:06]} 29. Ke4 {[%emt 0:00:44]} Qc6+ {[%emt 0:00:17]} 30. Ke3 {[%emt 0:00:56]} Qc5+ {[%emt 0:00:43]} 31. Ke4 {[%emt 0:00:25]} Qd5+ {[%emt 0:00:11]} 32. Ke3 {[%emt 0:00:10]} Qxe5+ {[%emt 0:00:16]} 33. Be4 {[%emt 0:00:04]} Qxg3+ {[%emt 0:00:28]} 34. Kd4 {[%emt 0:00:20]} Rd8+ {[%emt 0:01:41]} 35. Kc4 {[%emt 0:00:07]} Qc7+ {[%emt 0:01:09]} 36. Kb3 {[%emt 0:00:22]} b5 {[%emt 0:02:39]} 37. Bd3 {[%emt 0:01:03]} Rxd3+ {[%emt 0:02:08]} 38. Kb4 {[%emt 0:00:01]} Qc4+ {[%emt 0:00:36]} 0-1

[Event "Gibraltar Junior Intl U16 2019"]
[Site "Caleta"]
[Date "2019.08.18"]
[Round "4.21"]
[White "Lv, Jason"]
[Black "Hirst, Joe"]
[Result "0-1"]
[ECO "E92"]
[WhiteElo "1532"]
[BlackElo "1639"]
[Annotator "NA"]
[PlyCount "126"]
[EventDate "2019.08.16"]
[EventType "swiss"]
[EventCountry "GGB"]
[SourceTitle "playchess.com"]
[Source "ChessBase"]
[SourceQuality "1"]
[TimeControl "6600+10"]

1. d4 {[%emt 0:00:00]} Nf6 {[%emt 0:00:00]} 2. Nf3 {[%emt 0:00:00]} g6 {[%emt 0:00:00]} 3. c4 {[%emt 0:00:05]} Bg7 {[%emt 0:00:03]} 4. Nc3 {[%emt 0:00:07]} O-O {[%emt 0:00:07]} 5. e4 {[%emt 0:00:06]} d6 {[%emt 0:00:05]} 6. Be2 {[%emt 0:00:15]} e5 {[%emt 0:00:05]} 7. d5 {[%emt 0:00:22]} a5 {[%emt 0:00:52]} 8. Be3 {[%emt 0:01:09]} Na6 {[%emt 0:01:19]} 9. Nd2 {[%emt 0:00:41]} Bd7 {[%emt 0:03:03]} 10. O-O {[%emt 0:03:50]} Ne8 {[%emt 0:02:24]} 11. Qe1 {[%emt 0:08:05]} f5 {[%emt 0:01:58]} 12. exf5 {[%emt 0:13:48]} gxf5 {[%emt 0:00:33]} 13. f4 {[%emt 0:01:08]} e4 {[%emt 0:04:14]} 14. g4 {[%emt 0:04:06]} fxg4 {[%emt 0:06:59]} 15. Ndxe4 {[%emt 0:01:12]} b6 {[%emt 0:03:39]} 16. Ng5 {[%emt 0:15:16]} Qe7 {[%emt 0:04:44]} 17. Bd3 {[%emt 0:12:53]} Bf5 {[%emt 0:27:03]} 18. Bxf5 {[%emt 0:04:36]} Rxf5 {[%emt 0:00:47]} 19. Ne6 {[%emt 0:00:48]} Bh8 {[%emt 0:10:50]} 20. Bd4 {[%emt 0:09:35]} Qf7 {[%emt 0:09:13]} 21. Bxh8 {[%emt 0:02:47]} Kxh8 {[%emt 0:00:30]} 22. Ne4 {[%emt 0:01:21]} h6 {[%emt 0:04:29]} 23. Ng3 {[%emt 0:05:03]} Rf6 {[%emt 0:03:00]} 24. Qc3 {[%emt 0:06:27]} Kg8 {[%emt 0:07:23]} 25. Rf2 {[%emt 0:03:17]} Nc5 {[%emt 0:02:33]} 26. Nxc5 {[%emt 0:01:21]} dxc5 {[%emt 0:01:15]} 27. Raf1 {[%emt 0:01:02]} Nd6 {[%emt 0:02:32]} 28. Qd3 {[%emt 0:01:05]} Rf8 {[%emt 0:02:20]} 29. Ne4 {[%emt 0:01:03]} Nxe4 {[%emt 0:00:32]} 30. Qxe4 {[%emt 0:00:08]} Rf5 {[%emt 0:01:27]} 31. Kg2 {[%emt 0:02:56]} Re8 {[%emt 0:02:12]} 32. Qd3 {[%emt 0:00:26]} Qf6 {[%emt 0:01:28]} 33. Re2 {[%emt 0:03:48]} Rxe2+ {[%emt 0:01:00]} 34. Qxe2 {[%emt 0:00:02]} h5 {[%emt 0:01:16]} 35. Re1 {[%emt 0:01:31]} Qf7 {[%emt 0:01:37]} 36. Qe8+ {[%emt 0:01:32]} Qxe8 {[%emt 0:00:31]} 37. Rxe8+ {[%emt 0:00:01]} Kf7 {[%emt 0:00:24]} 38. Re4 {[%emt 0:00:04]} h4 {[%emt 0:01:08]} 39. a4 {[%emt 0:00:01]} Kg6 {[%emt 0:01:07]} 40. Re6+ {[%emt 0:00:18]} Rf6 {[%emt 0:00:26]} 41. Re7 {[%emt 0:01:26]} Rxf4 {[%emt 0:00:15]} 42. Rxc7 {[%emt 0:00:07]} Rf6 {[%emt 0:00:12]} 43. Rc6 {[%emt 0:00:15]} Kf5 {[%emt 0:00:29]} 44. d6 {[%emt 0:01:01]} Rf8 {[%emt 0:00:45]} 45. Rxb6 {[%emt 0:00:37]} Ke6 {[%emt 0:00:17]} 46. Ra6 {[%emt 0:00:12]} Rb8 {[%emt 0:00:14]} 47. d7+ {[%emt 0:00:36]} Kxd7 {[%emt 0:00:06]} 48. Rg6 {[%emt 0:00:18]} Rxb2+ {[%emt 0:00:06]} 49. Kg1 {[%emt 0:00:02]} Rb4 {[%emt 0:00:21]} 50. Rxg4 {[%emt 0:00:09]} h3 {[%emt 0:00:08]} 51. Rf4 {[%emt 0:00:25]} Rxa4 {[%emt 0:00:05]} 52. Rf1 {[%emt 0:00:19]} Rxc4 {[%emt 0:00:06]} 53. Ra1 {[%emt 0:00:01]} a4 {[%emt 0:00:04]} 54. Kf2 {[%emt 0:00:06]} Rc2+ {[%emt 0:00:02]} 55. Kg3 {[%emt 0:00:03]} Rc3+ {[%emt 0:00:04]} 56. Kg4 {[%emt 0:00:07]} a3 {[%emt 0:00:04]} 57. Ra2 {[%emt 0:00:02]} c4 {[%emt 0:00:05]} 58. Kf4 {[%emt 0:00:03]} Rb3 {[%emt 0:00:07]} 59. Ke4 {[%emt 0:00:20]} Rb2 {[%emt 0:00:20]} 60. Rxa3 {[%emt 0:00:02]} Rxh2 {[%emt 0:00:04]} 61. Ra1 {[%emt 0:00:07]} c3 {[%emt 0:00:04]} 62. Kd3 {[%emt 0:00:06]} c2 {[%emt 0:00:05]} 63. Rc1 {[%emt 0:00:18]} Rg2 {[%emt 0:00:07]} 0-1

[Event "Gibraltar Junior Intl U16 2019"]
[Site "Caleta"]
[Date "2019.08.18"]
[Round "4.23"]
[White "Rayner, Hugo"]
[Black "Guilfanov, Raphael"]
[Result "0-1"]
[ECO "C54"]
[WhiteElo "1448"]
[BlackElo "1493"]
[Annotator "NA"]
[PlyCount "52"]
[EventDate "2019.08.16"]
[EventType "swiss"]
[EventCountry "GGB"]
[SourceTitle "playchess.com"]
[Source "ChessBase"]
[SourceQuality "1"]
[TimeControl "6600+10"]

1. e4 {[%emt 0:00:00]} e5 {[%emt 0:00:00]} 2. Nf3 {[%emt 0:00:00]} Nc6 {[%emt 0:00:00]} 3. Bc4 {[%emt 0:00:00]} Bc5 {[%emt 0:00:07]} 4. c3 {[%emt 0:00:25]} Nf6 {[%emt 0:03:38]} 5. d4 {[%emt 0:00:54]} exd4 {[%emt 0:00:04]} 6. cxd4 {[%emt 0:00:07]} Bb6 {[%emt 0:01:35]} 7. d5 {[%emt 0:06:22]} Na5 {[%emt 0:07:24]} 8. Qd3 {[%emt 0:08:44]} Nxc4 {[%emt 0:05:28]} 9. Qxc4 {[%emt 0:00:19]} O-O {[%emt 0:00:47]} 10. e5 {[%emt 0:03:27]} Ne8 {[%emt 0:09:14]} 11. O-O {[%emt 0:04:57]} d6 {[%emt 0:00:22]} 12. e6 {[%emt 0:03:39]} fxe6 {[%emt 0:01:17]} 13. dxe6 {[%emt 0:03:31]} d5 {[%emt 0:00:12]} 14. e7 {[%emt 0:01:25]} Qxe7 {[%emt 0:03:15]} 15. Qxd5+ {[%emt 0:00:23]} Be6 {[%emt 0:06:37]} 16. Qxb7 {[%emt 0:05:28]} Rd8 {[%emt 0:01:32]} 17. Re1 {[%emt 0:02:13]} Qb4 {[%emt 0:07:08]} 18. Qc6 {[%emt 0:06:14]} Rd6 {[%emt 0:09:56]} 19. Qc3 {[%emt 0:01:25]} Qg4 {[%emt 0:07:51]} 20. Nbd2 {[%emt 0:07:53]} Bd5 {[%emt 0:04:49]} 21. Qe5 {[%emt 0:06:40]} c6 {[%emt 0:07:01]} 22. Qxe8 {[%emt 0:08:50]} Bxf3 {[%emt 0:00:20]} 23. Qxf8+ {[%emt 0:05:10]} Kxf8 {[%emt 0:00:22]} 24. Nxf3 {[%emt 0:00:29]} Rf6 {[%emt 0:05:12]} 25. Kf1 {[%emt 0:00:02]} Rxf3 {[%emt 0:00:02]} 26. Kg1 {[%emt 0:05:02]} Rf6 0-1

[Event "Gibraltar Junior Intl U16 2019"]
[Site "Caleta"]
[Date "2019.08.18"]
[Round "4.24"]
[White "Major, Richard"]
[Black "Dhanwani, Aryan"]
[Result "1/2-1/2"]
[ECO "B12"]
[WhiteElo "1615"]
[BlackElo "1319"]
[Annotator "NA"]
[PlyCount "28"]
[EventDate "2019.08.16"]
[EventType "swiss"]
[EventCountry "GGB"]
[SourceTitle "playchess.com"]
[Source "ChessBase"]
[SourceQuality "1"]
[TimeControl "6600+10"]

1. e4 {[%emt 0:14:41]} c6 {[%emt 0:00:10]} 2. d4 {[%emt 0:00:04]} d5 {[%emt 0:00:10]} 3. e5 {[%emt 0:00:06]} Bf5 {[%emt 0:00:12]} 4. h4 {[%emt 0:00:11]} h5 {[%emt 0:00:09]} 5. Nf3 {[%emt 0:00:13]} e6 {[%emt 0:01:28]} 6. Bd3 {[%emt 0:00:02]} Bxd3 {[%emt 0:02:14]} 7. Qxd3 {[%emt 0:00:02]} Nd7 {[%emt 0:01:11]} 8. c4 {[%emt 0:00:04]} Bb4+ {[%emt 0:00:54]} 9. Bd2 {[%emt 0:00:02]} Bxd2+ {[%emt 0:00:35]} 10. Nbxd2 {[%emt 0:00:02]} Ne7 {[%emt 0:03:42]} 11. Ng5 {[%emt 0:00:02]} Nf5 {[%emt 0:13:25]} 12. Qf3 {[%emt 0:01:46]} Qe7 {[%emt 0:03:30]} 13. cxd5 {[%emt 0:00:19]} cxd5 {[%emt 0:00:21]} 14. Qf4 {[%emt 0:02:32]} Qb4 {[%emt 0:08:17]} 1/2-1/2

[Event "Gibraltar Junior Intl U16 2019"]
[Site "Caleta"]
[Date "2019.08.18"]
[Round "4.25"]
[White "Popham, Sarah"]
[Black "Harbinson, Alec Ryan"]
[Result "1/2-1/2"]
[ECO "A08"]
[WhiteElo "1372"]
[BlackElo "1118"]
[Annotator "NA"]
[PlyCount "103"]
[EventDate "2019.08.16"]
[EventType "swiss"]
[EventCountry "GGB"]
[SourceTitle "playchess.com"]
[Source "ChessBase"]
[SourceQuality "1"]
[TimeControl "6600+10"]

1. Nf3 {[%emt 0:00:00]} Nf6 {[%emt 0:00:00]} 2. g3 {[%emt 0:00:00]} e6 {[%emt 0:00:03]} 3. Bg2 {[%emt 0:00:05]} d5 {[%emt 0:00:13]} 4. O-O {[%emt 0:00:10]} c5 {[%emt 0:00:51]} 5. d3 {[%emt 0:00:12]} Nbd7 {[%emt 0:01:11]} 6. c4 {[%emt 0:05:11]} d4 {[%emt 0:03:32]} 7. e3 {[%emt 0:00:57]} dxe3 {[%emt 0:04:00]} 8. Bxe3 {[%emt 0:01:40]} Rb8 {[%emt 0:02:20]} 9. Nc3 {[%emt 0:01:49]} a6 {[%emt 0:02:46]} 10. a4 {[%emt 0:01:52]} Bd6 {[%emt 0:02:28]} 11. Qc1 {[%emt 0:05:20]} b6 {[%emt 0:04:47]} 12. Bf4 {[%emt 0:03:43]} Nf8 {[%emt 0:04:38]} 13. Bxd6 {[%emt 0:04:00]} Qxd6 {[%emt 0:00:14]} 14. Qe3 {[%emt 0:03:19]} Ng6 {[%emt 0:06:24]} 15. Ne4 {[%emt 0:08:53]} Nxe4 {[%emt 0:04:30]} 16. Qxe4 {[%emt 0:03:30]} Bb7 {[%emt 0:01:27]} 17. Qe3 {[%emt 0:01:41]} Bxf3 {[%emt 0:13:07]} 18. Qxf3 {[%emt 0:02:30]} O-O {[%emt 0:07:39]} 19. Rfd1 {[%emt 0:08:07]} Rfd8 {[%emt 0:03:20]} 20. Qc6 {[%emt 0:10:38]} Qxc6 {[%emt 0:05:25]} 21. Bxc6 {[%emt 0:00:08]} Ne5 {[%emt 0:00:22]} 22. Be4 {[%emt 0:01:43]} f5 {[%emt 0:01:54]} 23. Bg2 {[%emt 0:03:32]} Nxd3 {[%emt 0:00:39]} 24. b3 {[%emt 0:03:53]} Nb4 {[%emt 0:01:36]} 25. Rxd8+ {[%emt 0:01:51]} Rxd8 {[%emt 0:00:20]} 26. a5 {[%emt 0:01:15]} bxa5 {[%emt 0:14:31]} 27. Rxa5 {[%emt 0:00:48]} Rd1+ {[%emt 0:00:12]} 28. Bf1 {[%emt 0:00:23]} Rb1 {[%emt 0:08:29]} 29. Rxc5 {[%emt 0:03:05]} Rxb3 {[%emt 0:01:51]} 30. Rc8+ {[%emt 0:02:00]} Kf7 {[%emt 0:00:12]} 31. Rb8 {[%emt 0:01:08]} a5 {[%emt 0:00:41]} 32. Ra8 {[%emt 0:13:03]} Ra3 {[%emt 0:00:58]} 33. c5 {[%emt 0:02:24]} Ra1 {[%emt 0:03:32]} 34. Kg2 {[%emt 0:01:25]} a4 {[%emt 0:03:14]} 35. Bc4 {[%emt 0:01:46]} a3 {[%emt 0:02:38]} 36. Ra4 {[%emt 0:03:57]} a2 {[%emt 0:02:41]} 37. Bxa2 {[%emt 0:04:24]} Nxa2 {[%emt 0:00:31]} 38. Ra7+ {[%emt 0:01:14]} Kf6 {[%emt 0:00:49]} 39. c6 {[%emt 0:00:31]} Rc1 {[%emt 0:00:01]} 40. Rxa2 {[%emt 0:01:29]} Rxc6 {[%emt 0:00:01]} 41. Ra4 {[%emt 0:00:13]} h5 {[%emt 0:00:18]} 42. h4 {[%emt 0:01:21]} g5 {[%emt 0:00:36]} 43. hxg5+ {[%emt 0:00:32]} Kxg5 {[%emt 0:00:03]} 44. Rh4 {[%emt 0:00:42]} Rc8 {[%emt 0:00:42]} 45. Rb4 {[%emt 0:00:23]} Re8 {[%emt 0:00:27]} 46. f4+ {[%emt 0:00:18]} Kh6 {[%emt 0:00:13]} 47. Kh3 {[%emt 0:00:01]} Rg8 {[%emt 0:00:12]} 48. Rb6 {[%emt 0:00:02]} Rg6 {[%emt 0:00:01]} 49. Kg2 {[%emt 0:00:24]} Rf6 {[%emt 0:00:05]} 50. Kf3 {[%emt 0:00:03]} Rg6 {[%emt 0:00:30]} 51. Rc6 {[%emt 0:00:03]} Rf6 {[%emt 0:00:03]} 52. Rb6 {[%emt 0:00:02]} 1/2-1/2

[Event "Gibraltar Junior Intl U16 2019"]
[Site "Caleta"]
[Date "2019.08.18"]
[Round "5.1"]
[White "Garrido Outon, Alex"]
[Black "Cesar Maestre, Bernardo"]
[Result "1-0"]
[ECO "B94"]
[WhiteElo "2231"]
[BlackElo "2084"]
[Annotator "NA"]
[PlyCount "93"]
[EventDate "2019.08.16"]
[EventType "swiss"]
[EventCountry "GGB"]
[SourceTitle "playchess.com"]
[Source "ChessBase"]
[SourceQuality "1"]
[TimeControl "6600+10"]

1. e4 {[%emt 0:00:00]} c5 {[%emt 0:00:00]} 2. Nf3 {[%emt 0:00:00]} d6 {[%emt 0:00:01]} 3. d4 {[%emt 0:00:00]} cxd4 {[%emt 0:00:05]} 4. Nxd4 {[%emt 0:00:02]} Nf6 {[%emt 0:00:07]} 5. Nc3 {[%emt 0:00:04]} a6 {[%emt 0:00:02]} 6. Bg5 {[%emt 0:00:06]} Nbd7 {[%emt 0:00:09]} 7. Qe2 {[%emt 0:02:43] B94: Sicilian Najdorf: 6 Bg5 Nbd7} (7. Bc4 Qb6 8. Bb3 e6 9. Qd2 Be7 10. O-O-O Nc5 11. f3 Qc7 12. g4 b5 13. h4 Bd7 14. Kb1 b4 15. Nce2 {0-1 (40) Papp,G (2591)-Navara,D (2733) Slovakia 2019}) 7... e5 {[%emt 0:00:46]} 8. Nf5 {[%emt 0:02:17]} h6 {[%emt 0:00:49]} 9. Bh4 {[%emt 0:01:55]} g6 {[%emt 0:01:22]} 10. Ne3 {[%emt 0:00:10]} Be7 {[%emt 0:00:15]} 11. O-O-O {[%emt 0:01:18]} b5 {[%emt 0:00:39]} 12. Bxf6 {[%emt 0:04:59]} Nxf6 {[%emt 0:00:18]} 13. g3 $146 {[%emt 0:01:01]} ({Predecessor:} 13. Ned5 Be6 14. g3 Rc8 {½-½ (28) Berchtenbreiter,M (2290)-Ziska,H (2460) Bad Wiessee 2011}) 13... Be6 {[%emt 0:02:09]} 14. Kb1 {[%emt 0:03:53]} Rc8 {[%emt 0:10:22]} 15. Ned5 {[%emt 0:01:42]} Nxd5 {[%emt 0:01:14]} 16. Nxd5 {[%emt 0:00:35]} Bxd5 {[%emt 0:01:52]} 17. exd5 {[%emt 0:09:04]} Kf8 {[%emt 0:01:10]} 18. h4 {[%emt 0:00:59]} h5 $1 {[%emt 0:00:38]} 19. f4 {[%emt 0:03:18]} exf4 {[%emt 0:03:04]} 20. gxf4 {[%emt 0:00:35]} Bxh4 {[%emt 0:01:20]} 21. Bh3 {[%emt 0:10:45]} Rc4 {[%emt 0:00:59]} 22. f5 {[%emt 0:11:30]} g5 {[%emt 0:00:59]} 23. f6 {[%emt 0:05:47]} Qxf6 {[%emt 0:05:43]} 24. Rdf1 {[%emt 0:00:50]} Rf4 {[%emt 0:00:46]} 25. Bc8 $19 {[%emt 0:03:34]} Qe5 {[%emt 0:08:41]} 26. Qd3 {[%emt 0:02:47]} Qe4 {[%emt 0:10:46]} 27. Rxf4 {[%emt 0:05:52]} Qxd3 {[%emt 0:00:18]} 28. cxd3 {[%emt 0:00:04]} gxf4 {[%emt 0:00:37]} 29. Rxh4 {[%emt 0:00:03]} a5 {[%emt 0:00:49]} 30. Rxf4 {[%emt 0:01:12]} Kg7 {[%emt 0:00:33]} 31. Bh3 {[%emt 0:02:04]} h4 {[%emt 0:01:21]} 32. Kc2 {[%emt 0:00:55]} Rh5 {[%emt 0:00:19]} 33. Kc3 {[%emt 0:01:23]} Kg6 {[%emt 0:00:20]} 34. a4 {[%emt 0:01:09]} Rxd5 {[%emt 0:00:50]} 35. Rxh4 {[%emt 0:01:25]} b4+ {[%emt 0:01:04]} 36. Kc4 {[%emt 0:01:17]} Rc5+ {[%emt 0:00:10]} 37. Kb3 {[%emt 0:00:05]} d5 {[%emt 0:00:53]} 38. Bg2 {[%emt 0:00:52]} f5 {[%emt 0:00:51]} 39. Rd4 {[%emt 0:00:46]} Rc7 {[%emt 0:00:22]} 40. Rxd5 {[%emt 0:00:19]} Ra7 {[%emt 0:00:07]} 41. Kc4 {[%emt 0:00:22]} f4 {[%emt 0:00:07]} 42. Kb5 {[%emt 0:01:40]} Rf7 {[%emt 0:00:19]} 43. Be4+ {[%emt 0:00:25]} Kg7 {[%emt 0:00:14]} 44. Kxa5 {[%emt 0:00:22]} f3 {[%emt 0:00:07]} 45. Rf5 {[%emt 0:00:07]} f2 {[%emt 0:00:16]} 46. Rxf7+ {[%emt 0:00:03]} Kxf7 {[%emt 0:00:10]} 47. Bg2 {[%emt 0:00:03]} 1-0